bitfinex-derivatives/quotes_BTCF0:USTF0_20250130
["timestamp","ask_amount","ask_price","bid_price","bid_amount"]
[1738252159986,0.188651,106010.0,106000.0,0.4608]
[1738252160183,0.34237782,106010.0,106000.0,0.4608]
[1738252160682,0.34237782,106010.0,106000.0,0.649469]
[1738252161086,0.34237782,106010.0,106000.0,0.4608]
[1738252161788,0.34237782,106010.0,106000.0,0.4628]
[1738252163483,0.00970955,106020.0,106000.0,0.4628]
[1738252163788,0.0001419,106020.0,106010.0,0.35130858]
[1738252164683,0.1887749,106020.0,106010.0,0.35130858]
[1738252164887,0.0001419,106020.0,106010.0,0.35130858]
[1738252165192,0.34250172,106020.0,106010.0,0.16265758]
[1738252165688,0.34250172,106020.0,106000.0,0.685463]
[1738252165890,0.34237782,106010.0,106000.0,0.4618]
[1738252166082,0.34237782,106010.0,106000.0,0.4668]
[1738252167185,0.34237782,106010.0,106000.0,0.4618]
[1738252168183,0.34237782,106010.0,106000.0,0.4608]
[1738252169090,0.34237782,106010.0,106000.0,0.4628]
[1738252169790,0.34237782,106010.0,106000.0,0.651469]
[1738252170391,0.34250372,106020.0,106000.0,0.651469]
[1738252170689,0.0001419,106020.0,106010.0,0.549451]
[1738252170895,0.15386872,106020.0,106010.0,0.549451]
[1738252171096,0.34250172,106020.0,106010.0,0.549451]
[1738252172386,0.34250172,106020.0,106010.0,0.551451]
[1738252172789,0.1887749,106020.0,106010.0,0.190651]
[1738252172995,0.1887749,106020.0,106010.0,0.002]
[1738252173989,0.1887749,106020.0,106010.0,0.003]
[1738252174386,0.70330172,106020.0,106010.0,0.003]
[1738252174588,0.51466872,106020.0,106000.0,0.1]
[1738252174893,0.76917782,106010.0,106000.0,0.1]
[1738252176001,0.92290464,106010.0,106000.0,0.1]
[1738252176191,0.49612164,106000.0,105990.0,9.458e-05]
[1738252176398,0.73419482,106000.0,105990.0,9.458e-05]
[1738252176589,0.70319482,106000.0,105990.0,0.18878058]
[1738252177186,0.70319482,106000.0,105990.0,9.458e-05]
[1738252177990,0.85692164,106000.0,105990.0,9.458e-05]
[1738252178398,0.85692164,106000.0,105990.0,0.00109458]
[1738252179301,0.70319482,106000.0,105990.0,0.00109458]
[1738252179605,0.70419482,106000.0,105990.0,9.458e-05]
[1738252180507,0.87416213,106000.0,105990.0,9.458e-05]
[1738252181396,1.02788895,106000.0,105990.0,9.458e-05]
[1738252181906,1.03731567,106000.0,105990.0,9.458e-05]
[1738252182798,0.188722,105970.0,105960.0,0.33598969]
[1738252182998,0.34244882,105970.0,105960.0,0.326632]
[1738252183600,0.51452682,105970.0,105950.0,0.255348]
[1738252183798,0.34246682,105960.0,105950.0,0.255348]
[1738252183997,0.18874,105960.0,105950.0,0.255348]
[1738252185190,0.18874,105960.0,105950.0,0.258348]
[1738252185593,0.18874,105960.0,105950.0,0.003]
[1738252185801,0.70326682,105960.0,105950.0,0.003]
[1738252185996,0.87222871,105960.0,105950.0,0.003]
[1738252186501,0.87222871,105960.0,105950.0,0.00316864]
[1738252186898,0.71850189,105960.0,105950.0,0.00316864]
[1738252187707,0.35770189,105960.0,105950.0,0.00316864]
[1738252188303,0.35770189,105960.0,105950.0,0.19192564]
[1738252188502,0.87222871,105960.0,105950.0,0.00316864]
[1738252188704,0.65221881,105960.0,105950.0,0.00316864]
[1738252188902,0.75489762,105960.0,105950.0,0.00316864]
[1738252189103,0.29241881,105960.0,105950.0,0.01016864]
[1738252189404,0.29241881,105960.0,105950.0,0.37096864]
[1738252189803,0.001,105960.0,105950.0,0.55972564]
[1738252190012,0.001,105960.0,105950.0,0.66240445]
[1738252190311,0.0001419,105970.0,105960.0,0.18874]
[1738252190503,0.0001419,105970.0,105960.0,0.54954]
[1738252190697,0.0001419,105970.0,105960.0,0.61624]
[1738252190905,0.0001419,105970.0,105960.0,0.54954]
[1738252192109,0.21455395,105970.0,105960.0,0.54954]
[1738252193003,0.21455395,105970.0,105960.0,0.55154]
[1738252193209,0.40327595,105970.0,105960.0,0.55154]
[1738252193402,0.55719982,105970.0,105960.0,0.55154]
[1738252193594,0.40327595,105970.0,105960.0,0.55154]
[1738252194804,0.55719982,105970.0,105960.0,0.3628]
[1738252194998,0.55719982,105970.0,105960.0,0.002]
[1738252195201,0.98359982,105970.0,105960.0,0.002]
[1738252195504,1.01459982,105970.0,105960.0,0.002]
[1738252196306,0.9687249,105970.0,105960.0,0.002]
[1738252197009,0.5769249,105970.0,105960.0,0.18874]
[1738252197198,0.16867903,105970.0,105960.0,0.54954]
[1738252197401,0.16867903,105970.0,105960.0,0.61554]
[1738252198106,0.35740103,105970.0,105960.0,0.61554]
[1738252198608,0.1888639,105970.0,105960.0,0.61554]
[1738252199212,0.1888639,105970.0,105960.0,0.4268]
[1738252200220,0.34278777,105970.0,105960.0,0.4268]
[1738252200412,0.15406577,105970.0,105950.0,0.580545]
[1738252200609,0.18874,105960.0,105950.0,0.580545]
[1738252200910,0.18874,105960.0,105950.0,0.549545]
[1738252201112,0.18874,105960.0,105950.0,0.580545]
[1738252201499,0.188757,105950.0,105940.0,0.76456213]
[1738252201705,0.34266987,105960.0,105940.0,0.79556213]
[1738252202012,0.188746,105960.0,105950.0,0.3628]
[1738252202209,0.32942055,105970.0,105960.0,0.18874]
[1738252202416,0.32942055,105970.0,105960.0,0.3918]
[1738252202603,0.48334442,105970.0,105960.0,0.3918]
[1738252202911,0.18874,105960.0,105950.0,0.3648]
[1738252203415,0.18874,105960.0,105950.0,0.553557]
[1738252204816,0.188757,105950.0,105940.0,0.80552213]
[1738252205125,0.188757,105950.0,105940.0,0.77456213]
[1738252205309,0.188757,105950.0,105940.0,0.76456213]
[1738252206010,0.001,105950.0,105940.0,0.77156213]
[1738252206407,0.001,105950.0,105940.0,0.77456213]
[1738252206907,0.001,105950.0,105940.0,0.928486]
[1738252207508,0.49808993,105970.0,105950.0,0.188744]
[1738252207810,0.49808993,105970.0,105960.0,0.3608]
[1738252208010,0.49808993,105970.0,105960.0,0.54954]
[1738252208619,0.35753628,105970.0,105960.0,0.54954]
[1738252208801,0.35753628,105970.0,105960.0,0.3608]
[1738252209619,0.18874,105960.0,105950.0,0.3668]
[1738252210115,0.70346387,105960.0,105950.0,0.002]
[1738252210615,0.18874,105960.0,105950.0,0.002]
[1738252210814,0.18874,105960.0,105950.0,0.3628]
[1738252211116,0.18874,105960.0,105950.0,0.3608]
[1738252211310,0.18874,105960.0,105950.0,0.549557]
[1738252211516,0.30145127,105960.0,105950.0,0.549557]
[1738252211915,0.11271127,105960.0,105950.0,0.549557]
[1738252212117,0.11271127,105960.0,105950.0,0.73444087]
[1738252212416,0.11271127,105960.0,105950.0,0.73644087]
[1738252212713,0.11271127,105960.0,105950.0,0.74144087]
[1738252212917,0.11271127,105960.0,105950.0,0.587517]
[1738252213116,0.11271127,105960.0,105950.0,0.74144087]
[1738252215109,0.30969537,105970.0,105960.0,0.188739]
[1738252215309,0.30969537,105970.0,105960.0,0.79066287]
[1738252215910,0.14088909,105980.0,105970.0,0.188722]
[1738252216111,0.14088909,105980.0,105970.0,0.86770587]
[1738252217314,0.16880628,105990.0,105980.0,0.188704]
[1738252217519,0.16880628,105990.0,105980.0,0.549504]
[1738252219219,0.16880628,105990.0,105980.0,0.70342787]
[1738252219523,0.16880628,105990.0,105980.0,0.549504]
[1738252220320,0.17280628,105990.0,105980.0,0.549504]
[1738252220523,0.0041419,105990.0,105980.0,0.77527964]
[1738252220820,0.36412805,105990.0,105980.0,0.22577564]
[1738252221024,0.72492805,105990.0,105980.0,0.22577564]
[1738252222021,0.8275282,105990.0,105980.0,0.22577564]
[1738252222221,0.8584882,105990.0,105980.0,0.22577564]
[1738252222620,0.80722598,105990.0,105980.0,0.22577564]
[1738252225122,0.188722,105970.0,105960.0,0.0001419]
[1738252225314,0.70346008,105970.0,105960.0,0.0001419]
[1738252225513,0.70346008,105970.0,105960.0,0.1888809]
[1738252226416,0.188722,105970.0,105960.0,0.1888809]
[1738252226728,0.32471,105980.0,105970.0,0.188722]
[1738252227129,0.18871,105980.0,105970.0,0.188722]
[1738252227432,0.18871,105980.0,105970.0,0.254222]
[1738252227829,0.18871,105980.0,105970.0,0.0655]
[1738252228026,0.18971,105980.0,105970.0,0.0655]
[1738252229218,0.19071,105980.0,105970.0,0.0655]
[1738252229719,0.19071,105980.0,105970.0,0.615022]
[1738252229919,0.19071,105980.0,105970.0,0.681922]
[1738252232123,0.19071,105980.0,105970.0,0.750522]
[1738252233531,0.002,105980.0,105970.0,0.750522]
[1738252233736,0.002,105980.0,105970.0,0.93542008]
[1738252234035,0.002,105980.0,105970.0,0.781482]
[1738252234538,0.002,105980.0,105970.0,0.79077524]
[1738252237540,0.002,105980.0,105970.0,0.94471332]
[1738252238140,0.002,105980.0,105970.0,0.79077524]
[1738252239634,0.15593808,105980.0,105960.0,0.77545454]
[1738252239829,0.188722,105970.0,105960.0,0.61763754]
[1738252240040,0.188722,105970.0,105960.0,0.53839728]
[1738252240237,0.41156008,105970.0,105960.0,0.50747728]
[1738252240438,0.90916008,105970.0,105960.0,0.50747728]
[1738252241433,0.90916008,105970.0,105960.0,0.0001419]
[1738252241843,0.90916008,105970.0,105960.0,0.0021419]
[1738252244737,0.85787313,105970.0,105960.0,0.0021419]
[1738252245947,0.96052426,105970.0,105960.0,0.0021419]
[1738252247030,0.85787313,105970.0,105960.0,0.0021419]
[1738252247436,0.88879313,105970.0,105960.0,0.1908819]
[1738252247633,0.85787313,105970.0,105960.0,0.1908819]
[1738252248542,0.72107313,105970.0,105960.0,0.1908819]
[1738252249438,0.36027313,105970.0,105960.0,0.1908819]
[1738252249642,0.188722,105970.0,105960.0,0.2572819]
[1738252250143,0.29137313,105970.0,105960.0,0.0685419]
[1738252250650,0.29137313,105970.0,105960.0,0.0021419]
[1738252250651,0.65217313,105970.0,105960.0,0.0021419]
[1738252250840,0.29137313,105970.0,105960.0,0.0021419]
[1738252251150,0.32941199,105980.0,105970.0,0.188722]
[1738252251448,0.14070499,105980.0,105970.0,0.78617313]
[1738252253150,0.14170499,105980.0,105970.0,0.78617313]
[1738252253546,0.33040899,105980.0,105970.0,0.683522]
[1738252253851,0.43306012,105980.0,105970.0,0.4948]
[1738252254051,0.33040899,105980.0,105970.0,0.4948]
[1738252254248,0.33040899,105980.0,105970.0,0.683522]
[1738252254644,0.33140899,105980.0,105970.0,0.683522]
[1738252254844,0.190704,105980.0,105970.0,0.683522]
[1738252256049,0.34461019,105980.0,105970.0,0.3608]
[1738252256246,0.188722,105970.0,105960.0,0.58674881]
[1738252256447,0.41172819,105970.0,105960.0,0.58674881]
[1738252256751,0.257822,105970.0,105960.0,0.58674881]
[1738252258243,0.257822,105970.0,105960.0,0.58874881]
[1738252258546,0.77252819,105970.0,105960.0,0.22794881]
[1738252259348,0.80344819,105970.0,105960.0,0.22794881]
[1738252259552,0.80344819,105970.0,105950.0,0.27925864]
[1738252259553,0.18874,105960.0,105950.0,0.27925864]
[1738252259751,0.70344619,105960.0,105950.0,0.27916509]
[1738252260148,0.51470619,105960.0,105940.0,0.22704538]
[1738252260449,0.76826319,105950.0,105940.0,0.22562979]
[1738252261154,0.188775,105940.0,105930.0,0.33871037]
[1738252261452,0.70348119,105940.0,105930.0,0.33871037]
[1738252262242,0.34268119,105940.0,105930.0,0.33871037]
[1738252262450,0.67832,105950.0,105930.0,0.88533656]
[1738252262451,0.2228,105950.0,105930.0,0.88533656]
[1738252262649,0.001,105950.0,105940.0,0.83458119]
[1738252262954,0.0001419,105960.0,105950.0,0.188757]
[1738252263252,0.0001419,105960.0,105950.0,0.580477]
[1738252263656,0.0001419,105960.0,105950.0,0.73438319]
[1738252263857,0.14212112,105990.0,105980.0,0.188704]
[1738252264058,0.14212112,105990.0,105980.0,0.549504]
[1738252264249,0.15159438,105990.0,105980.0,0.549504]
[1738252265045,0.14212112,105990.0,105980.0,0.549504]
[1738252265253,0.00141613,105990.0,105980.0,0.549504]
[1738252265859,0.19410213,105990.0,105980.0,0.549504]
[1738252266058,0.19410213,105990.0,105980.0,0.188704]
[1738252266452,0.19610213,105990.0,105980.0,0.188704]
[1738252266653,0.19610213,105990.0,105970.0,0.7066769]
[1738252267163,0.19610213,105990.0,105980.0,0.0678]
[1738252267556,0.35000832,105990.0,105970.0,0.6757569]
[1738252267857,0.00741613,105990.0,105980.0,0.188704]
[1738252268062,0.19610213,105990.0,105970.0,0.7066809]
[1738252268450,0.19210213,105990.0,105970.0,0.7066809]
[1738252268954,0.19310213,105990.0,105970.0,0.7066809]
[1738252269150,0.00441613,105990.0,105980.0,0.549504]
[1738252269360,0.003,105990.0,105980.0,0.70341019]
[1738252269660,0.0094496,106000.0,105990.0,0.188686]
[1738252269862,0.0094496,106000.0,105990.0,0.73427219]
[1738252270748,0.0094496,106000.0,105990.0,0.580366]
[1738252271057,0.0094496,106000.0,105990.0,0.219566]
[1738252271257,0.1981176,106000.0,105990.0,0.03088]
[1738252271462,0.35202379,106000.0,105990.0,0.3608]
[1738252271655,0.1981176,106000.0,105990.0,0.3608]
[1738252272356,0.188686,105990.0,105980.0,0.002]
[1738252272565,0.188704,105980.0,105970.0,0.0001419]
[1738252272755,0.73429019,105980.0,105970.0,0.0001419]
[1738252273056,0.188722,105970.0,105960.0,0.00127354]
[1738252273258,0.18874,105960.0,105950.0,0.33871037]
[1738252273458,0.70344619,105960.0,105950.0,0.33871037]
[1738252273664,0.69949238,105960.0,105930.0,0.0652]
[1738252273857,0.188793,105930.0,105920.0,0.0679]
[1738252274049,0.34269919,105930.0,105920.0,0.0679]
[1738252274362,0.188793,105930.0,105920.0,0.0679]
[1738252275055,0.0001419,105940.0,105930.0,0.188793]
[1738252275360,0.0001419,105940.0,105930.0,0.580473]
[1738252276663,0.0001419,105940.0,105930.0,0.582473]
[1738252277158,0.0001419,105940.0,105930.0,0.73637919]
[1738252277571,0.093587,105960.0,105930.0,0.54958619]
[1738252277858,0.093587,105960.0,105950.0,0.70346319]
[1738252278074,0.08425731,105960.0,105950.0,0.73434319]
[1738252279063,0.25300967,105970.0,105960.0,0.188739]
[1738252279264,0.25300967,105970.0,105960.0,0.77794519]
[1738252280357,0.0001419,105970.0,105960.0,0.77794519]
[1738252280855,0.0011419,105970.0,105960.0,0.77794519]
[1738252282662,0.0011419,105970.0,105960.0,0.80882519]
[1738252283062,0.0011419,105970.0,105960.0,0.654919]
[1738252283771,0.1898629,105970.0,105960.0,0.46618]
[1738252283958,0.0011419,105970.0,105960.0,0.549539]
[1738252285969,0.0011419,105970.0,105960.0,0.70344519]
[1738252286171,0.34376909,105970.0,105960.0,0.3608]
[1738252286376,0.34376909,105970.0,105950.0,0.651433]
[1738252286576,0.34376909,105970.0,105950.0,0.4318]
[1738252286577,0.51584809,105970.0,105950.0,0.4318]
[1738252286772,0.188757,105950.0,105940.0,0.0990219]
[1738252287164,0.34266319,105950.0,105940.0,0.0681419]
[1738252287468,0.188757,105950.0,105940.0,0.0681419]
[1738252287866,0.188757,105950.0,105940.0,0.4289419]
[1738252288066,0.34266319,105950.0,105940.0,0.0001419]
[1738252288364,0.70346319,105950.0,105940.0,0.0001419]
[1738252288564,0.70346319,105950.0,105940.0,0.0021419]
[1738252288972,0.70346319,105950.0,105940.0,0.0061419]
[1738252290372,0.35198305,105950.0,105940.0,0.1949159]
[1738252290572,0.00931986,105950.0,105940.0,0.5547159]
[1738252290771,0.410545,105960.0,105950.0,0.188757]
[1738252291173,0.30108808,105960.0,105950.0,0.549557]
[1738252291385,0.30108808,105960.0,105950.0,0.188757]
[1738252291674,0.45499827,105960.0,105940.0,0.6545939]
[1738252291878,0.30109208,105960.0,105940.0,0.6545939]
[1738252292080,0.30109208,105960.0,105940.0,0.6525939]
[1738252292380,0.30109208,105960.0,105940.0,0.6515939]
[1738252292573,0.11234308,105960.0,105940.0,0.6515939]
[1738252292782,0.188757,105950.0,105940.0,0.2907939]
[1738252292977,0.188757,105950.0,105940.0,0.1020219]
[1738252293171,0.188757,105950.0,105940.0,0.0711419]
[1738252293372,0.549557,105950.0,105940.0,0.0711419]
[1738252294184,0.549557,105950.0,105940.0,0.0691419]
[1738252294971,0.70346319,105950.0,105940.0,0.0691419]
[1738252295276,0.70346319,105950.0,105940.0,0.0711419]
[1738252295482,0.188757,105950.0,105940.0,0.0711419]
[1738252295688,0.188757,105950.0,105940.0,0.6217159]
[1738252295984,0.70346319,105950.0,105940.0,0.0031419]
[1738252297777,0.77776319,105950.0,105940.0,0.0031419]
[1738252297982,0.88900619,105950.0,105920.0,0.0688]
[1738252298277,0.34269819,105930.0,105920.0,0.0688]
[1738252299378,0.188792,105930.0,105920.0,0.0688]
[1738252299579,0.188792,105930.0,105920.0,0.0708]
[1738252299883,0.188792,105930.0,105920.0,0.25961]
[1738252300084,0.188792,105930.0,105920.0,0.26361]
[1738252301778,0.47328498,105940.0,105920.0,0.0748]
[1738252301981,0.11248498,105940.0,105930.0,0.617292]
[1738252302275,0.11248498,105940.0,105930.0,0.77119819]
[1738252302585,0.11248498,105940.0,105930.0,0.617292]
[1738252303184,0.11248498,105940.0,105930.0,1.13199819]
[1738252304283,0.11248498,105940.0,105930.0,0.978092]
[1738252304484,0.11248498,105940.0,105930.0,1.008932]
[1738252304788,0.45516517,105940.0,105930.0,0.4285]
[1738252305086,0.34282209,105940.0,105930.0,0.0687]
[1738252305480,0.70362209,105940.0,105930.0,0.001]
[1738252305975,0.77502209,105940.0,105930.0,0.001]
[1738252307687,0.80586209,105940.0,105930.0,0.001]
[1738252308591,0.91820517,105940.0,105930.0,0.001]
[1738252308781,0.88736517,105940.0,105930.0,0.189792]
[1738252309784,0.33779117,105940.0,105930.0,0.189792]
[1738252309990,9.8e-07,105940.0,105930.0,1.21449819]
[1738252310184,0.16862963,105960.0,105930.0,1.01224319]
[1738252310492,0.16862963,105960.0,105950.0,1.06426219]
[1738252310688,0.16862963,105960.0,105950.0,1.10510219]
[1738252311085,0.01087552,105980.0,105950.0,1.10510219]
[1738252311086,0.0001419,105970.0,105950.0,0.91634619]
[1738252311281,0.0001419,105970.0,105960.0,0.84284519]
[1738252312093,0.0001419,105970.0,105960.0,0.87368519]
[1738252313092,0.0001419,105970.0,105960.0,0.84284519]
[1738252313392,0.0001419,105970.0,105960.0,0.719779]
[1738252313690,0.0021419,105970.0,105960.0,0.719779]
[1738252313895,0.1908629,105970.0,105960.0,0.5002]
[1738252314089,0.1908629,105970.0,105960.0,0.46044]
[1738252314389,0.1918629,105970.0,105960.0,0.4296]
[1738252314588,0.1918629,105970.0,105960.0,0.3608]
[1738252314784,0.1918629,105970.0,105950.0,0.549556]
[1738252314986,0.1918629,105970.0,105950.0,0.580396]
[1738252315187,0.1918629,105970.0,105960.0,0.3608]
[1738252315990,0.1908629,105970.0,105960.0,0.3608]
[1738252316184,0.1888629,105970.0,105960.0,0.3608]
[1738252316687,0.34276909,105970.0,105960.0,0.3608]
[1738252316899,0.1898629,105970.0,105960.0,0.3608]
[1738252317091,0.1918629,105970.0,105960.0,0.3608]
[1738252317784,0.0031419,105970.0,105960.0,0.70344519]
[1738252317990,0.0031419,105970.0,105960.0,0.73428519]
[1738252320184,0.0031419,105970.0,105960.0,0.01]
[1738252320386,0.0031419,105970.0,105940.0,0.58673578]
[1738252320387,0.56502809,105970.0,105940.0,0.58673578]
[1738252320693,0.56502809,105970.0,105940.0,0.4328419]
[1738252320694,0.34266219,105950.0,105940.0,0.4328419]
[1738252320900,0.70346219,105950.0,105940.0,0.0001419]
[1738252321888,0.73430219,105950.0,105940.0,0.0001419]
[1738252322089,0.188792,105930.0,105920.0,0.28160958]
[1738252322296,0.18881,105920.0,105910.0,0.33788579]
[1738252322492,0.70351619,105920.0,105910.0,0.33788579]
[1738252323397,0.51470619,105920.0,105900.0,0.1]
[1738252323590,0.188828,105910.0,105900.0,0.1]
[1738252324302,0.34273419,105910.0,105900.0,0.1]
[1738252324901,0.34273419,105910.0,105900.0,0.101]
[1738252325299,0.34273419,105910.0,105900.0,0.103]
[1738252325300,0.73437419,105910.0,105900.0,0.103]
[1738252325490,0.188846,105900.0,105890.0,0.33788579]
[1738252325698,0.70355219,105900.0,105890.0,0.33788579]
[1738252326006,0.73439219,105900.0,105890.0,0.33788579]
[1738252326500,0.73439219,105900.0,105870.0,1.29992666]
[1738252326501,0.70355219,105900.0,105880.0,0.188881]
[1738252326893,0.70355219,105900.0,105870.0,0.3608]
[1738252327103,0.84498109,105910.0,105900.0,0.001]
[1738252327298,0.65614809,105910.0,105900.0,0.189846]
[1738252327990,0.51484809,105910.0,105900.0,0.188846]
[1738252328796,0.0001419,105910.0,105900.0,0.550646]
[1738252328998,0.15404809,105910.0,105900.0,0.550646]
[1738252329905,0.0001419,105910.0,105900.0,0.581486]
[1738252330197,0.16345458,105920.0,105900.0,0.39264]
[1738252330405,0.15390619,105920.0,105910.0,0.188828]
[1738252330699,0.22500619,105930.0,105910.0,0.549628]
[1738252330888,0.262479,105940.0,105920.0,0.3608]
[1738252331090,0.15390619,105930.0,105920.0,0.3608]
[1738252331301,0.15390619,105930.0,105920.0,0.3609419]
[1738252331804,0.34269819,105930.0,105920.0,0.0001419]
[1738252332195,0.70349819,105930.0,105920.0,0.0001419]
[1738252333804,0.188827,105910.0,105900.0,0.001]
[1738252334102,0.34273319,105910.0,105900.0,0.001]
[1738252334308,0.70353319,105910.0,105900.0,0.001]
[1738252334895,0.188845,105900.0,105890.0,0.62156]
[1738252335093,0.34275119,105900.0,105890.0,0.62156]
[1738252335294,0.34275119,105900.0,105890.0,0.3608]
[1738252336202,0.34275119,105900.0,105890.0,0.3648]
[1738252336908,0.34275119,105900.0,105890.0,0.3668]
[1738252338908,0.35202592,105900.0,105890.0,0.3668]
[1738252340002,0.71282592,105900.0,105890.0,0.006]
[1738252340606,0.74362592,105900.0,105890.0,0.006]
[1738252341401,0.74362592,105900.0,105890.0,0.002]
[1738252342109,0.71282592,105900.0,105890.0,0.002]
[1738252343300,0.71282592,105900.0,105890.0,0.001]
[1738252343496,0.71782592,105900.0,105890.0,0.001]
[1738252344106,0.71282592,105900.0,105890.0,0.001]
[1738252344305,0.71482592,105900.0,105890.0,0.001]
[1738252344604,0.74562592,105900.0,105890.0,0.001]
[1738252344814,0.188881,105880.0,105870.0,0.62500363]
[1738252345004,0.34278719,105880.0,105870.0,0.62500363]
[1738252345814,0.188881,105880.0,105870.0,0.62500363]
[1738252346506,0.188881,105880.0,105870.0,0.43611663]
[1738252346905,0.34278719,105880.0,105870.0,0.44011663]
[1738252347505,0.34278719,105880.0,105870.0,0.004]
[1738252347716,0.85749338,105880.0,105870.0,0.004]
[1738252347915,0.188916,105860.0,105850.0,0.0711]
[1738252348211,0.34282219,105860.0,105850.0,0.0711]
[1738252349518,0.188934,105850.0,105840.0,0.1449]
[1738252349725,0.34284019,105850.0,105840.0,0.1449]
[1738252351619,0.34284019,105850.0,105840.0,0.1479]
[1738252351818,0.34384019,105850.0,105840.0,0.1499]
[1738252352013,0.66961238,105850.0,105820.0,0.00141735]
[1738252352315,0.188988,105820.0,105810.0,0.05086677]
[1738252352623,0.189006,105810.0,105800.0,0.07902717]
[1738252352808,0.93171838,105810.0,105800.0,0.06510856]
[1738252353009,0.77781219,105810.0,105800.0,0.06510856]
[1738252353421,0.77781219,105810.0,105800.0,0.34691164]
[1738252353719,0.77781219,105810.0,105800.0,0.5723541]
[1738252355326,0.77881219,105810.0,105800.0,0.5723541]
[1738252355822,0.78181219,105810.0,105800.0,0.5723541]
[1738252356017,0.93571838,105810.0,105800.0,0.5723541]
[1738252356325,1.00741838,105810.0,105800.0,0.5723541]
[1738252356525,0.85351219,105810.0,105800.0,0.5723541]
[1738252357616,1.00741838,105810.0,105800.0,0.28533508]
[1738252358219,0.49271219,105810.0,105800.0,0.28533508]
[1738252358428,0.34691219,105810.0,105800.0,0.28533508]
[1738252358724,0.34691219,105810.0,105800.0,0.47435808]
[1738252358934,0.34691219,105810.0,105800.0,0.83515808]
[1738252359117,0.004,105810.0,105800.0,0.83515808]
[1738252359322,0.004,105810.0,105800.0,1.26745808]
[1738252359524,0.004,105810.0,105800.0,1.054723]
[1738252359719,0.004,105810.0,105800.0,1.085523]
[1738252360825,0.15790619,105810.0,105800.0,1.085523]
[1738252361018,0.34691219,105810.0,105800.0,0.8657]
[1738252362017,0.34691219,105810.0,105800.0,0.5049]
[1738252362615,0.70771219,105810.0,105800.0,0.4323]
[1738252362825,0.86161838,105810.0,105800.0,0.33719504]
[1738252363028,0.86161838,105810.0,105760.0,0.1425]
[1738252363029,0.189077,105770.0,105760.0,0.1425]
[1738252363220,0.70378319,105770.0,105760.0,0.1425]
[1738252363924,0.34298319,105770.0,105760.0,0.1425]
[1738252365231,0.189077,105770.0,105760.0,0.1425]
[1738252365837,0.189077,105770.0,105760.0,0.692395]
[1738252366140,0.189077,105770.0,105760.0,0.693395]
[1738252366431,0.189077,105770.0,105760.0,0.5043]
[1738252366835,0.189077,105770.0,105760.0,0.001]
[1738252367131,0.34298319,105770.0,105760.0,0.001]
[1738252367433,0.70378319,105770.0,105760.0,0.001]
[1738252368525,0.51470619,105770.0,105730.0,0.580746]
[1738252368725,0.70381519,105760.0,105740.0,0.54993]
[1738252369040,0.549909,105760.0,105740.0,0.54993]
[1738252369928,0.549909,105760.0,105740.0,0.69323]
[1738252371326,0.550909,105760.0,105740.0,0.84913619]
[1738252371531,0.190109,105760.0,105750.0,0.549913]
[1738252371737,0.001,105760.0,105750.0,0.649813]
[1738252372231,0.001,105760.0,105750.0,0.80371919]
[1738252373343,0.19840124,105770.0,105760.0,0.189095]
[1738252373842,0.00931124,105770.0,105760.0,0.549895]
[1738252374024,0.1892039,105780.0,105760.0,0.51470619]
[1738252374232,0.0001419,105780.0,105770.0,0.87458319]
[1738252374736,0.0001419,105780.0,105770.0,0.720677]
[1738252375034,0.0001419,105780.0,105770.0,0.329077]
[1738252375236,0.0001419,105780.0,105770.0,0.720677]
[1738252375433,0.0001419,105780.0,105770.0,0.359877]
[1738252375828,0.0001419,105780.0,105770.0,0.84378319]
[1738252376026,0.0001419,105780.0,105770.0,0.87458319]
[1738252377435,0.0031419,105780.0,105770.0,0.87458319]
[1738252379333,0.0021419,105780.0,105770.0,0.87758319]
[1738252380137,0.0011419,105780.0,105770.0,0.87958319]
[1738252380343,1e-08,105780.0,105770.0,1.23897431]
[1738252380542,0.11270534,105800.0,105790.0,0.189041]
[1738252380743,0.11270534,105800.0,105790.0,0.73454719]
[1738252382734,0.11270534,105800.0,105790.0,0.73654719]
[1738252383338,0.00141868,105800.0,105790.0,1.09734719]
[1738252383838,0.00141868,105800.0,105790.0,1.10034719]
[1738252384055,0.29326528,105810.0,105800.0,0.189023]
[1738252384250,0.26075398,105810.0,105800.0,0.77432919]
[1738252384439,0.26075398,105810.0,105800.0,0.688423]
[1738252384640,0.44977098,105810.0,105790.0,0.585639]
[1738252384839,0.62155398,105810.0,105790.0,0.554839]
[1738252385141,0.189023,105800.0,105790.0,0.554839]
[1738252385450,0.189023,105800.0,105790.0,0.551839]
[1738252385649,0.189023,105800.0,105790.0,0.3628]
[1738252386239,0.189023,105800.0,105780.0,0.87329509]
[1738252386445,0.189023,105800.0,105780.0,0.7193889]
[1738252386962,0.189041,105790.0,105780.0,0.3609419]
[1738252387749,0.549841,105790.0,105780.0,0.0001419]
[1738252388045,0.70374719,105790.0,105780.0,0.0001419]
[1738252388242,0.189095,105760.0,105750.0,0.22386133]
[1738252388444,0.70380119,105760.0,105750.0,0.22386133]
[1738252389842,0.549895,105760.0,105750.0,0.22386133]
[1738252390148,0.70380119,105760.0,105750.0,0.22386133]
[1738252390651,0.70480119,105760.0,105750.0,0.22386133]
[1738252390846,0.550895,105760.0,105750.0,0.22386133]
[1738252391349,0.66218166,105760.0,105750.0,0.34301919]
[1738252391555,0.66218166,105760.0,105750.0,0.189113]
[1738252391851,0.66218166,105760.0,105750.0,0.191113]
[1738252392145,0.66218166,105760.0,105750.0,0.002]
[1738252392348,0.81608785,105760.0,105750.0,0.002]
[1738252392651,0.81608785,105760.0,105740.0,0.55134434]
[1738252392652,0.66418166,105760.0,105740.0,0.55134434]
[1738252393052,0.66418166,105760.0,105740.0,0.70525053]
[1738252393241,0.30338166,105760.0,105740.0,0.70525053]
[1738252393443,0.30238166,105760.0,105750.0,0.34301919]
[1738252393738,0.30238166,105760.0,105740.0,0.36221834]
[1738252393944,0.66318166,105760.0,105740.0,0.55134434]
[1738252394545,0.189113,105750.0,105740.0,0.55134434]
[1738252394744,0.189113,105750.0,105740.0,0.55334434]
[1738252395047,0.67073,105760.0,105740.0,0.70725053]
[1738252395251,0.67073,105760.0,105740.0,0.73805053]
[1738252395738,0.67073,105760.0,105740.0,0.70925053]
[1738252395943,0.67073,105760.0,105740.0,0.39701834]
[1738252396144,0.189113,105750.0,105740.0,0.03621834]
[1738252396542,0.189113,105750.0,105740.0,0.55092453]
[1738252397047,0.309931,105760.0,105740.0,0.74004653]